Department family,Entity,Date,Expense Type,Expense area,Supplier,Transaction number,AP Amount (�),Description,VAT registration number
Department of Health,03K,31/05/16,C&M-GMS Cost of Drugs -Dispensing,LOCAL ENHANCED SERVICES,BRIDGE STREET SURGERY,KHU000018646,"(26,572.73)",LOCAL ENHANCED SERVICES,
Department of Health,03K,31/05/16,C&M-GMS Cost of Drugs -Dispensing,LOCAL ENHANCED SERVICES,BRIDGE STREET SURGERY,KHU000018647,"58,291.26",LOCAL ENHANCED SERVICES,
Department of Health,03K,31/05/16,C&M-GMS Cost of Drugs -Dispensing,LOCAL ENHANCED SERVICES,DR P A WEBSTER & PARTNERS,KHU000018655,"(62,499.96)",LOCAL ENHANCED SERVICES,
Department of Health,03K,31/05/16,C&M-GMS Cost of Drugs -Dispensing,LOCAL ENHANCED SERVICES,DR P A WEBSTER & PARTNERS,KHU000018656,"130,561.34",LOCAL ENHANCED SERVICES,
Department of Health,03K,31/05/16,C&M-GMS Cost of Drugs -Dispensing,LOCAL ENHANCED SERVICES,TRENT VIEW MEDICAL PRACTICE,KHU000018662,"(46,839.82)",LOCAL ENHANCED SERVICES,
Department of Health,03K,31/05/16,C&M-GMS Cost of Drugs -Dispensing,LOCAL ENHANCED SERVICES,TRENT VIEW MEDICAL PRACTICE,KHU000018663,"94,876.65",LOCAL ENHANCED SERVICES,
Department of Health,03K,31/05/16,Clinical&Medical-Independent Sector,ACUTE ELDERLY SERVICES,SAFECARE NETWORK LTD,49,"29,350.42",ASSESSEMENT SERVICE,
Department of Health,03K,31/05/16,Hcare Srv Rec Fdtn Trust-Non Contract,MENTAL HEALTH SERVICES - NOT CONTRACTED ACTIVITY,ROTHERHAM DONCASTER & SOUTH HUMBER MENTAL HEALTH NHS FOUNDATION TRUST,72645,"199,127.00",OUT OF AREA PLACEMENT SAVINGS - PER MoU 50% SHARE,
Department of Health,03K,31/05/16,Hcare Srv Rec Fdtn Trust-Contract Baseline,MENTAL HEALTH CONTRACTS,ROTHERHAM DONCASTER & SOUTH HUMBER MENTAL HEALTH NHS FOUNDATION TRUST,72960,"1,101,423.00",MH & COMMUNITY CONTRACT MAY 16,
Department of Health,03K,31/05/16,Hcare Srv Rec NHS Trust-Contract Baseline,ACUTE COMMISSIONING,UNITED LINCOLNSHIRE HOSPITALS NHS TRUST,177476,"52,405.92",SLA M2,
Department of Health,03K,31/05/16,Hcare Srv Rec NHS Trust-Contract Baseline,AMBULANCE SERVICES,EAST MIDLANDS AMBULANCE SERVICE NHS TRUST,11307430,"(428,678.00)",CREDIT INVOICE 11307303,
Department of Health,03K,31/05/16,Hcare Srv Rec NHS Trust-Contract Baseline,AMBULANCE SERVICES,EAST MIDLANDS AMBULANCE SERVICE NHS TRUST,11307452,"431,163.00",SLA APR 16,
Department of Health,03K,31/05/16,Hcare Srv Rec NHS Trust-Contract Baseline,AMBULANCE SERVICES,EAST MIDLANDS AMBULANCE SERVICE NHS TRUST,11307473,"431,163.00",SLA MAY 16,
Department of Health,03K,31/05/16,Hcare Srv Rec NHS Trust-Contract Baseline,ACUTE COMMISSIONING,LEEDS TEACHING HOSPITALS NHS TRUST,1410043100,"65,183.45",2016/17 CONTRACT M2,
Department of Health,03K,31/05/16,Hcare Srv Rec Fdtn Trust-Contract Baseline,ACUTE CHILDRENS SERVICES,SHEFFIELD CHILDRENS NHS FOUNDATION TRUST,2100173910,"38,445.00",SLA M2,
Department of Health,03K,31/05/16,Hcare Srv Rec Fdtn Trust-Contract Baseline,ACUTE COMMISSIONING,NORTHERN LINCOLNSHIRE AND GOOLE HOSPITALS NHS FOUNDATION TRUST,2400012137,"8,643,000.00",May Block 2016,
Department of Health,03K,31/05/16,Hcare Srv Rec Fdtn Trust-Contract Baseline,ACUTE COMMISSIONING,SHEFFIELD TEACHING HOSPITALS NHS FOUNDATION TRUST,4000455374,"86,000.00",COST AND COLUME CONTRACT MAY 16,
Department of Health,03K,31/05/16,Hcare Srv Rec Fdtn Trust-Contract Baseline,ACUTE COMMISSIONING,DONCASTER AND BASSETLAW HOSPITALS NHS FOUNDATION TRUST,82145156,"251,383.00",MONTH 2 CONTRACT,
Department of Health,03K,31/05/16,Hcare Srv Rec NHS Trust-Contract Baseline,ACUTE COMMISSIONING,HULL AND EAST YORKSHIRE HOSPITALS NHS TRUST,H0000072,"888,131.00",BLOCK CONTRACR MAY 2016,
Department of Health,03K,31/05/16,Hcare Srv Rec NHS Trust-Contract Baseline,PATIENT TRANSPORT,EAST MIDLANDS AMBULANCE SERVICE NHS TRUST,11307506,"99,559.00",PTS CONTRACT MAY 2016,
Department of Health,03K,31/05/16,C&M-GMS Cost of Drugs -Dispensing,LOCAL ENHANCED SERVICES,CENTRAL SURGERY BARTON HUMBER,KHU000018650,"(40,766.40)",LOCAL ENHANCED SERVICES,
Department of Health,03K,31/05/16,C&M-GMS Cost of Drugs -Dispensing,LOCAL ENHANCED SERVICES,CENTRAL SURGERY BARTON HUMBER,KHU000018651,"77,560.18",LOCAL ENHANCED SERVICES,
Department of Health,03K,31/05/16,C&M-GMS Cost of Drugs -Dispensing,LOCAL ENHANCED SERVICES,RIVERSIDE SURGERY,KHU000018653,"(56,175.92)",LOCAL ENHANCED SERVICES,
Department of Health,03K,31/05/16,C&M-GMS Cost of Drugs -Dispensing,LOCAL ENHANCED SERVICES,RIVERSIDE SURGERY,KHU000018654,"111,895.02",LOCAL ENHANCED SERVICES,
Department of Health,03K,31/05/16,C&M-GMS Cost of Drugs -Dispensing,LOCAL ENHANCED SERVICES,KIRTON LINDSEY SURGERY,KHU000018657,"(33,763.86)",LOCAL ENHANCED SERVICES,
Department of Health,03K,31/05/16,C&M-GMS Cost of Drugs -Dispensing,LOCAL ENHANCED SERVICES,KIRTON LINDSEY SURGERY,KHU000018658,"60,099.20",LOCAL ENHANCED SERVICES,
Department of Health,03K,31/05/16,C&M-GMS Cost of Drugs -Dispensing,LOCAL ENHANCED SERVICES,SOUTH AXHOLME PRACTICE,KHU000018660,"(95,620.40)",LOCAL ENHANCED SERVICES,
Department of Health,03K,31/05/16,C&M-GMS Cost of Drugs -Dispensing,LOCAL ENHANCED SERVICES,SOUTH AXHOLME PRACTICE,KHU000018661,"199,430.78",LOCAL ENHANCED SERVICES,
Department of Health,03K,31/05/16,C&M-GMS Cost of Drugs -Dispensing,LOCAL ENHANCED SERVICES,SK NAEEM,KHU000018670,"31,002.93",LOCAL ENHANCED SERVICES,
Department of Health,03K,31/05/16,Clinical&Medical-Independent Sector,COMMUNITY SERVICES,SAFECARE NETWORK LTD,64,"29,350.42",COMMUNITY HOLISTIC GERIATRIC//FRAILTY/ASSESSMENT SERVICE,
Department of Health,03K,31/05/16,Clinical&Medical-Independent Sector,ACUTE COMMISSIONING,SPIRE HEALTHCARE LTD,03KHULPF161702,"57,458.00",1/12 ANNUAL CONTRACT MAY 16,
Department of Health,03K,31/05/16,Clinical&Medical-Independent Sector,ACUTE COMMISSIONING,SPIRE HEALTHCARE LTD,03KHULREC201511,"31,584.84",SAC ACTIVITES - FEBRUARY 2015/16 LESS INVOICE 03kHULPF201511,
Department of Health,03K,31/05/16,Clinical&Medical-Independent Sector,Winter Resilience,L I V E S,483,"30,000.00",FUNDING FOR LIVES FIRST RESPONDER SCHEME FOR YEAR 2015/16,
Department of Health,03K,31/05/16,Other Gen Supplies & Srv,CEO/ BOARD OFFICE,KIER BUSINESS SERVICES LTD,70062683,"72,075.60",APRIL CONTRACT FOR SERVICES RECEIVED IN YORKSHIRE AND HUMBER CCG'S,
Department of Health,03K,31/05/16,Other Gen Supplies & Srv,PRIMARY CARE IT,KIER BUSINESS SERVICES LTD,90210461,"72,075.60",MAY CONTRACT FOR SERVICES RECEIVED IN YORKSHIRE AND HUMBER CCG'S,
Department of Health,03K,31/05/16,Services From Local Authorities,INTERMEDIATE CARE,NORTH LINCOLNSHIRE COUNCIL,A0033533,"104,110.00",INTERMEDIATE CARE Q4,
Department of Health,03K,31/05/16,Services From Local Authorities,Winter Resilience,NORTH LINCOLNSHIRE COUNCIL,A0033594,"27,000.00",SRG FUNDING SOCIAL WORKING CAPACITY,
Department of Health,03K,31/05/16,C&M-GMS Cost of Drugs -Dispensing,LOCAL ENHANCED SERVICES,BARNETBY MEDICAL CENTRE,KHU000018667,"(43,012.70)",LOCAL ENHANCED SERVICES,
Department of Health,03K,31/05/16,C&M-GMS Cost of Drugs -Dispensing,LOCAL ENHANCED SERVICES,BARNETBY MEDICAL CENTRE,KHU000018668,"72,681.85",LOCAL ENHANCED SERVICES,
Department of Health,03K,31/05/16,Clinical&Medical-Voluntary Sector,HOSPICES,LINDSEY LODGE HOSPICE,LLH1101,"124,293.25",Q1 CCG GRANT INCOME,
Department of Health,03K,31/05/16,Clinical&Medical-Independent Sector,ACUTE COMMISSIONING,ST HUGHS HOSPITAL,MAY2016,"45,833.00",MAY PROCEDURES 2016,
Department of Health,03K,31/05/16,Clinical&Medical-Independent Sector,ACUTE COMMISSIONING,ST HUGHS HOSPITAL,Q4XS2016,"58,377.45",Q4 RECONCILIATION,
